bitfinex/quotes_SOLUSD_20250306
["timestamp","ask_amount","ask_price","bid_price","bid_amount"]
[1741248281377,84.1589,148.86,148.84,27.77091268]
[1741248281971,80.8,148.86,148.84,27.77091268]
[1741248282173,84.1588,148.86,148.84,27.77091268]
[1741248282485,84.1588,148.86,148.84,0.56864628]
[1741248282675,84.1588,148.86,148.84,27.77091268]
[1741248283182,84.1588,148.86,148.84,0.56864628]
[1741248283574,84.1588,148.86,148.85,27.34442797]
[1741248283765,84.1588,148.86,148.85,0.14216157]
[1741248284183,84.1588,148.86,148.85,312.14216157]
[1741248284383,84.1588,148.86,148.85,312.28432314]
[1741248284573,84.1588,148.86,148.85,312.56864628]
[1741248284780,88.12234999,148.86,148.85,312.56864628]
[1741248285088,93.07654096,148.86,148.85,312.56864628]
[1741248285781,89.71774096,148.86,148.85,312.56864628]
[1741248285969,93.07654096,148.86,148.85,329.55963712]
[1741248286162,97.64568715,148.86,148.85,329.55963712]
[1741248287305,101.00448715,148.86,148.85,312.56864628]
[1741248288471,97.64568715,148.86,148.85,329.55963712]
[1741248289090,89.71774096,148.86,148.85,329.55963712]
[1741248289381,85.75419097,148.86,148.85,329.55963712]
[1741248291096,85.75419097,148.86,148.85,312.56864628]
[1741248291599,89.11299097,148.86,148.85,312.56864628]
[1741248291814,97.05814478,148.86,148.85,312.56864628]
[1741248292124,98.1,148.85,148.77,16.99099084]
[1741248292280,104.7525,148.84,148.78,0.42648471]
[1741248292481,98.1,148.83,148.78,0.56864628]
[1741248292903,98.1,148.83,148.78,17.55963712]
[1741248293099,98.1,148.83,148.81,0.14216157]
[1741248293285,103.05419097,148.82,148.8,328.99099084]
[1741248293481,103.05419097,148.82,148.8,16.99099084]
[1741248293683,103.05419097,148.82,148.8,0.28432314]
[1741248293996,3.97246053,148.81,148.8,0.56864628]
[1741248294193,7.33236053,148.81,148.8,0.56864628]
[1741248295397,3.97246053,148.81,148.8,0.56864628]
[1741248295605,7.33236053,148.81,148.8,0.56864628]
[1741248296613,3.97246053,148.81,148.8,329.55963712]
[1741248297803,84.77246053,148.81,148.8,329.55963712]
[1741248298396,84.77246053,148.81,148.8,348.20928598]
[1741248298704,3.97246053,148.81,148.8,348.20928598]
[1741248302111,3.97246053,148.81,148.8,328.99099084]
[1741248302406,7.33236053,148.81,148.8,312.42648471]
[1741248302592,7.33236053,148.81,148.8,312.56864628]
[1741248302787,7.33236053,148.81,148.8,329.55963712]
[1741248302982,3.97246053,148.81,148.8,348.20928598]
[1741248304402,3.97246053,148.81,148.8,354.92968598]
[1741248304996,3.97246053,148.81,148.8,348.20928598]
[1741248305408,3.97246053,148.83,148.82,19.21829514]
[1741248305701,3.97246053,148.83,148.82,36.20928598]
[1741248306609,80.83,148.87,148.83,0.56864628]
[1741248306802,80.83,148.87,148.86,17.55963712]
[1741248308414,84.83047215,148.87,148.86,17.55963712]
[1741248308714,84.83047215,148.87,148.86,329.55963712]
[1741248309794,84.83047215,148.87,148.86,348.20928598]
[1741248311021,4.03047215,148.87,148.86,354.92698598]
[1741248311914,4.03047215,148.87,148.86,312.56864628]
[1741248312220,4.03047215,148.87,148.86,312.14216157]
[1741248312711,4.03047215,148.87,148.86,312.56864628]
[1741248313903,4.03047215,148.87,148.86,329.55963712]
[1741248314225,4.03047215,148.87,148.86,312.56864628]
[1741248314714,4.03047215,148.87,148.86,329.55963712]
[1741248314916,4.03047215,148.87,148.86,421.91797682]
[1741248315219,2.1759089,148.87,148.86,421.91797682]
[1741248315609,0.03,148.9,148.89,0.56864628]
[1741248315922,0.03,148.9,148.89,36.20928598]
[1741248316906,0.03,148.9,148.89,42.92558598]
[1741248317121,0.03,148.9,148.89,36.20928598]
[1741248318725,0.03,148.9,148.89,348.20928598]
[1741248319327,0.03,148.9,148.89,354.92558598]
[1741248320219,0.03,148.93,148.92,70.56864628]
[1741248320413,0.03,148.94,148.93,19.21829514]
[1741248321221,0.03,148.94,148.93,25.93279514]
[1741248321404,0.03,148.94,148.93,42.92378598]
[1741248321602,0.03,148.96,148.95,53.20027682]
[1741248322106,0.03,148.96,148.95,36.20928598]
[1741248322307,0.03,148.96,148.95,53.20027682]
[1741248323115,0.03,148.96,148.95,36.20928598]
[1741248323425,0.03,148.96,148.95,348.20928598]
[1741248323618,0.03,148.96,148.95,371.91387682]
[1741248324125,0.03,148.96,148.95,354.92288598]
[1741248324723,0.03,148.96,148.95,371.91387682]
[1741248325629,0.03,148.96,148.95,348.20928598]
[1741248326017,0.03,148.96,148.95,354.92288598]
[1741248326416,0.03,148.96,148.95,371.91387682]
[1741248326907,0.03,148.96,148.95,354.92288598]
[1741248327107,0.03,148.96,148.95,348.20928598]
[1741248327308,0.03,148.96,148.95,371.91387682]
[1741248328446,0.03,148.98,148.97,0.56864628]
[1741248328741,0.03,148.98,148.97,17.55963712]
[1741248331616,0.03,148.98,148.97,329.55963712]
[1741248332432,0.03,148.98,148.97,329.41747555]
[1741248332812,0.03,148.98,148.97,329.55963712]
[1741248334233,0.03,148.98,148.97,354.92198598]
[1741248334531,0.03,148.98,148.97,348.20928598]
[1741248335230,0.03,148.98,148.97,329.55963712]
[1741248339728,0.03,148.98,148.97,354.92198598]
[1741248342329,0.03,148.98,148.97,312.14216157]
[1741248342519,0.03,148.98,148.97,328.99099084]
[1741248342720,0.03,148.98,148.97,329.13315241]
[1741248342935,0.03,148.98,148.97,329.55963712]
[1741248343236,0.03,148.98,148.97,329.41747555]
[1741248344040,80.83,148.98,148.97,312.0]
[1741248344442,0.03,148.98,148.97,312.0]
[1741248344824,0.03,148.98,148.97,312.56864628]
[1741248345032,0.03,148.98,148.97,329.55963712]
[1741248346245,0.03,148.98,148.97,354.92198598]
[1741248347051,0.03,148.98,148.97,329.27531398]
[1741248347623,0.03,148.98,148.97,348.20928598]
[1741248348031,0.03,148.98,148.97,329.55963712]
[1741248348443,0.03,148.98,148.97,329.27531398]
[1741248348751,0.03,148.98,148.97,329.55963712]
[1741248349051,0.03,148.98,148.97,312.0]
[1741248349545,0.03,148.98,148.97,329.55963712]
[1741248350138,0.03,148.98,148.97,312.56864628]
[1741248350748,0.03,148.98,148.97,329.55963712]
[1741248351353,0.03,148.98,148.97,312.56864628]
[1741248351853,0.03,148.98,148.97,312.14216157]
[1741248352246,0.03,148.98,148.97,329.13315241]
[1741248352849,0.03,148.98,148.97,329.55963712]
[1741248356145,0.03,148.98,148.97,312.56864628]
[1741248357134,0.03,148.98,148.97,329.55963712]
[1741248357537,0.03,148.98,148.97,336.27233712]
[1741248358234,0.03,148.98,148.97,329.55963712]
[1741248359631,0.03,148.98,148.97,348.20928598]
[1741248360649,0.03,148.98,148.97,342.0678615]
[1741248361143,0.03,148.98,148.97,348.7805615]
[1741248361344,0.03,148.98,148.97,342.0678615]
[1741248363682,0.03,148.98,148.97,323.41821264]
[1741248363983,0.03,148.98,148.97,322.84956636]
[1741248364285,0.03,148.98,148.97,323.41821264]
[1741248365278,0.03,148.98,148.97,312.56864628]
[1741248365470,0.03,148.98,148.97,312.0]
[1741248365766,0.03,148.98,148.97,322.84956636]
[1741248365942,0.03,148.98,148.97,322.99172793]
[1741248366668,0.03,148.98,148.97,323.41821264]
[1741248367046,0.03,148.98,148.97,348.7805615]
[1741248367247,0.03,148.98,148.97,342.0678615]
[1741248367654,0.03,148.98,148.97,323.41821264]
[1741248367855,80.83,148.98,148.97,323.41821264]
[1741248368460,80.83,148.98,148.97,322.99172793]
[1741248368662,84.1861,148.98,148.97,322.99172793]
[1741248369774,0.03,148.98,148.96,0.033]
[1741248370653,0.03,148.98,148.96,11.02472793]
[1741248371574,80.8,148.97,148.96,0.60164628]
[1741248371871,80.8,148.97,148.96,11.45121264]
[1741248372768,84.1563,148.97,148.96,323.02472793]
[1741248372969,84.1563,148.97,148.96,312.17516157]
[1741248373346,80.8,148.97,148.96,312.17516157]
[1741248373551,80.8,148.97,148.96,323.45121264]
[1741248374871,17.33,148.98,148.96,323.45121264]
[1741248375060,17.33,148.98,148.97,10.99172793]
[1741248375669,17.33,148.98,148.97,11.41821264]
[1741248378060,0.03,148.98,148.97,330.13091264]
[1741248378780,0.03,148.98,148.97,348.7805615]
[1741248380155,17.33,148.99,148.97,312.0]
[1741248380359,17.33,148.99,148.97,10.84956636]
[1741248380560,17.33,148.99,148.98,10.84956636]
[1741248380883,80.83,148.99,148.98,11.41821264]
[1741248381676,80.83,148.99,148.98,30.0678615]
[1741248383279,0.03,148.99,148.98,342.0678615]
[1741248383662,0.03,148.99,148.98,312.0]
[1741248383863,0.03,148.99,148.98,322.84956636]
[1741248384178,0.03,148.99,148.98,323.41821264]
[1741248385664,80.83,148.99,148.98,312.0]
[1741248386079,80.83,148.99,148.98,312.56864628]
[1741248386777,80.83,148.99,148.98,323.41821264]
[1741248387266,80.83,148.99,148.98,312.56864628]
[1741248387593,84.1859,148.99,148.98,312.56864628]
[1741248387766,84.1859,148.99,148.98,323.41821264]
[1741248388183,20.6859,148.99,148.98,312.14216157]
[1741248388382,20.6859,148.99,148.96,0.033]
[1741248388684,20.6859,148.99,148.98,11.41821264]
[1741248389796,3.3859,148.99,148.98,0.56864628]
[1741248389996,3.3859,148.99,148.98,0.14216157]
[1741248391364,3.3859,148.99,148.98,312.14216157]
[1741248391880,0.03,148.99,148.98,312.14216157]
[1741248392071,0.03,148.99,148.98,0.14216157]
[1741248392769,17.33,148.99,148.98,0.14216157]
[1741248393477,20.6859,148.99,148.98,0.14216157]
[1741248395067,20.6859,148.99,148.98,312.14216157]
[1741248395685,17.33,148.99,148.98,312.14216157]
[1741248396084,20.6859,148.99,148.98,312.14216157]
[1741248397504,17.33,148.99,148.98,312.14216157]
[1741248397700,20.6859,148.99,148.98,312.14216157]
[1741248398189,26.9167,148.99,148.98,312.14216157]
[1741248398372,9.6167,148.99,148.98,312.0]
[1741248398572,9.6167,148.99,148.98,312.14216157]
[1741248398887,11.1758,148.99,148.98,0.14216157]
[1741248400187,7.8199,148.99,148.98,0.14216157]
[1741248400687,11.1758,148.99,148.98,0.14216157]
[1741248401588,7.8199,148.99,148.98,0.14216157]
[1741248401977,7.8199,148.99,148.98,312.14216157]
[1741248402868,1.5891,148.99,148.98,312.14216157]
[1741248403672,0.03,148.99,148.98,0.14216157]
[1741248403988,0.03,148.99,148.98,10.99172793]
[1741248404691,0.03,148.99,148.98,11.41821264]
[1741248405775,0.03,148.99,148.98,0.14216157]
[1741248406793,0.03,148.99,148.98,312.14216157]
[1741248407177,0.03,148.99,148.98,312.56864628]
[1741248407375,0.03,148.99,148.98,312.14216157]
[1741248407576,17.33,148.99,148.98,312.14216157]
[1741248409087,17.33,148.99,148.98,323.41821264]
[1741248409285,0.03,148.99,148.98,323.41821264]
[1741248411200,0.03,148.99,148.98,312.14216157]
[1741248412408,0.03,148.99,148.98,312.56864628]
[1741248412616,0.03,148.99,148.98,323.41821264]
[1741248412905,0.03,148.99,148.98,342.0678615]
[1741248413122,0.03,148.99,148.98,323.41821264]
[1741248413504,80.83,148.99,148.98,312.56864628]
[1741248414611,80.83,148.99,148.98,323.41821264]
[1741248416899,80.83,148.99,148.98,342.0678615]
[1741248417704,80.83,148.99,148.98,312.56864628]
[1741248417902,84.1859,148.99,148.98,312.56864628]
[1741248420085,84.1859,148.99,148.98,312.14216157]
[1741248420290,20.6859,148.99,148.98,312.0]
[1741248420490,20.6859,148.99,148.98,312.14216157]
[1741248421817,17.33,148.99,148.98,312.56864628]
[1741248422515,20.6859,148.99,148.98,312.56864628]
[1741248422816,20.6859,148.99,148.98,312.14216157]
[1741248423806,20.6859,148.99,148.97,0.033]
[1741248425001,22.3195,148.99,148.97,0.033]
[1741248426213,35.94964886,148.98,148.97,0.0001]
[1741248427316,25.04174886,148.97,148.96,0.0001]
[1741248427502,107.84174886,148.97,148.96,0.0001]
[1741248428131,111.19804886,148.97,148.96,0.0001]
[1741248429216,109.19804886,148.97,148.96,0.0001]
[1741248431507,28.39804886,148.97,148.96,0.0001]
[1741248432222,30.39804886,148.97,148.96,0.0001]
[1741248432998,20.0,148.92,148.88,0.033]
[1741248433398,20.0,148.92,148.9,0.14216157]
[1741248434418,3.3577,148.91,148.88,0.033]
[1741248434625,11.752,148.91,148.88,0.033]
[1741248434817,18.64964886,148.9,148.88,0.033]
[1741248435401,35.94964886,148.9,148.88,0.033]
[1741248436012,17.3,148.9,148.88,0.033]
[1741248436521,3.3581,148.89,148.88,0.033]
[1741248436708,20.6581,148.89,148.88,0.033]
[1741248436910,20.6581,148.89,148.88,312.17516157]
[1741248437111,39.30774886,148.89,148.88,312.17516157]
[1741248437315,47.70314886,148.89,148.83,0.033]
[1741248437524,47.70314886,148.89,148.83,0.17516157]
[1741248437818,18.64964886,148.88,148.83,0.033]
[1741248438335,18.64964886,148.88,148.84,0.14216157]
[1741248438839,19.3,148.89,148.84,0.14216157]
[1741248438840,11.7551,148.87,148.84,0.14216157]
[1741248439048,18.64964886,148.86,148.84,0.14216157]
[1741248439240,17.3,148.85,148.84,0.14216157]
[1741248439437,17.3,148.85,148.83,312.033]
[1741248439809,17.3,148.85,148.84,0.14216157]
[1741248440228,17.3,148.85,148.78,0.033]
[1741248440229,20.64964886,148.83,148.78,0.033]
[1741248440532,18.64964886,148.81,148.71,0.60164628]
[1741248440709,29.0607,148.8,148.71,0.60164628]
[1741248440910,20.0,148.77,148.71,0.60164628]
[1741248441118,98.1,148.76,148.71,0.033]
[1741248441327,98.1,148.76,148.75,312.14216157]
[1741248443412,98.1,148.76,148.75,312.56864628]
[1741248444533,98.1,148.76,148.75,0.56864628]
[1741248445521,98.1,148.76,148.75,0.60164628]
[1741248446313,18.64964886,148.81,148.75,0.60164628]
[1741248446314,17.3,148.77,148.76,0.56864628]
[1741248446512,19.9882,148.8,148.76,0.56864628]
[1741248446933,19.9882,148.8,148.76,0.14216157]
[1741248447313,19.9882,148.8,148.76,312.14216157]
[1741248447928,17.3,148.8,148.76,312.14216157]
[1741248448732,17.3,148.8,148.77,0.14216157]
[1741248449037,17.3,148.8,148.78,0.14216157]
[1741248449217,17.3,148.8,148.78,0.42648471]
[1741248449415,17.3,148.84,148.8,0.14216157]
[1741248449735,19.9869,148.87,148.84,0.14216157]
[1741248450035,17.3,148.86,148.84,0.14216157]
[1741248450236,17.3,148.86,148.8,0.14216157]
[1741248450418,18.64964886,148.84,148.8,0.14216157]
[1741248451322,21.33724886,148.84,148.8,0.14216157]
[1741248451639,98.1,148.85,148.82,0.14216157]
[1741248451640,100.7872,148.85,148.82,0.14216157]
[1741248453441,98.1,148.85,148.82,0.14216157]
[1741248453647,100.7872,148.85,148.82,0.14216157]
[1741248454347,100.7872,148.85,148.8,0.56864628]
[1741248454923,100.7872,148.85,148.8,17.58732596]
[1741248455143,98.1,148.84,148.8,312.56864628]
[1741248455535,2.6876,148.83,148.8,312.56864628]
[1741248455727,80.8,148.82,148.8,312.56864628]
[1741248457242,80.8,148.82,148.8,329.58732596]
[1741248457444,80.8,148.82,148.81,17.58732596]
[1741248458234,80.8,148.82,148.81,0.14216157]
[1741248459748,80.8,148.82,148.8,0.033]
[1741248459749,17.3,148.81,148.8,0.033]
[1741248460650,17.3,148.81,148.8,312.17516157]
[1741248462036,19.9879,148.81,148.8,312.17516157]
[1741248463337,19.9879,148.81,148.8,0.17516157]
[1741248463522,38.63754886,148.81,148.8,0.033]
[1741248464140,21.33754886,148.81,148.8,0.033]
[1741248464632,2.6879,148.81,148.8,0.033]
[1741248466342,18.64964886,148.82,148.8,0.033]
[1741248467035,17.3,148.82,148.8,0.31732314]
[1741248467235,17.3,148.82,148.8,11.20137938]
[1741248467852,17.3,148.82,148.8,0.31732314]
[1741248468359,38.63744886,148.82,148.8,0.033]
[1741248468657,19.9878,148.82,148.79,0.14216157]
[1741248469041,19.9878,148.82,148.8,0.14216157]
[1741248469231,19.9878,148.82,148.8,0.56864628]
[1741248469436,19.9878,148.82,148.8,312.56864628]
[1741248469970,19.9878,148.82,148.8,0.56864628]
[1741248471236,19.9878,148.82,148.8,0.14216157]
[1741248471443,19.9878,148.82,148.79,0.56864628]
[1741248472975,19.9878,148.82,148.79,312.0]
[1741248472976,35.94964886,148.81,148.79,312.0]
[1741248473261,35.94964886,148.81,148.78,0.033]
[1741248474542,2.6881,148.8,148.78,0.033]
[1741248474749,17.3,148.79,148.78,0.033]
[1741248475843,17.3,148.79,148.78,11.48570252]
[1741248476050,17.3,148.79,148.78,323.48570252]
[1741248476557,18.64964886,148.81,148.78,312.033]
[1741248476760,18.64964886,148.81,148.78,0.033]
[1741248477066,17.3,148.8,148.79,0.14216157]
[1741248477561,17.3,148.8,148.79,0.56864628]
[1741248478045,17.3,148.8,148.79,11.45270252]
[1741248479553,17.3,148.8,148.79,18.17350252]
[1741248479749,17.3,148.8,148.79,330.17350252]
[1741248480267,17.3,148.8,148.79,18.17350252]
[1741248481466,17.3,148.8,148.79,11.45270252]
[1741248481761,80.8,148.84,148.81,0.14216157]
[1741248481969,0.03,148.82,148.81,0.14216157]
[1741248482145,0.03,148.82,148.81,6.64864628]
[1741248482745,0.03,148.85,148.83,0.14216157]
[1741248482960,0.03,148.85,148.84,11.45270252]
[1741248483162,0.03,148.85,148.84,330.17130252]
[1741248483871,0.03,148.85,148.84,323.45270252]
[1741248484452,0.03,148.85,148.84,330.17130252]
[1741248484656,0.03,148.85,148.84,329.55106855]
[1741248488068,0.03,148.85,148.84,336.26966855]
[1741248488993,0.03,148.85,148.84,329.55106855]
[1741248489165,0.03,148.85,148.84,336.26966855]
[1741248490086,0.03,148.85,148.84,328.98242227]
[1741248490279,0.03,148.85,148.84,312.0]
[1741248490680,0.03,148.85,148.84,312.56864628]
[1741248491388,0.03,148.85,148.81,16.98242227]
[1741248491779,0.03,148.85,148.81,0.56864628]
[1741248492187,2.7172,148.85,148.81,0.56864628]
[1741248492787,98.1,148.84,148.78,17.01542227]
[1741248492968,98.1,148.83,148.79,0.56864628]
[1741248493378,98.1,148.83,148.81,0.033]
[1741248493582,80.8,148.82,148.81,0.033]
[1741248493795,83.4878,148.82,148.81,0.033]
[1741248493979,80.8,148.82,148.81,17.58406855]
[1741248494178,80.8,148.84,148.82,0.56864628]
[1741248494375,80.8,148.84,148.83,329.12458384]
[1741248495065,80.8,148.84,148.83,17.55106855]
[1741248495885,80.8,148.84,148.83,17.05106855]
[1741248496187,0.03,148.85,148.84,0.14216157]
[1741248496383,0.03,148.85,148.84,17.12458384]
[1741248496585,17.3,148.84,148.81,0.033]
[1741248496782,80.8,148.83,148.81,0.033]
[1741248497096,80.8,148.83,148.82,0.14216157]
[1741248497276,80.8,148.83,148.81,0.033]
[1741248497791,80.8,148.83,148.81,0.31732314]
[1741248497968,83.4877,148.83,148.81,0.31732314]
[1741248498169,80.8,148.83,148.82,312.14216157]
[1741248498382,80.8,148.83,148.82,312.0]
[1741248498582,80.8,148.83,148.82,312.14216157]
[1741248498583,83.4876,148.83,148.82,312.14216157]
[1741248498771,83.4876,148.83,148.82,312.0]
[1741248499181,83.4876,148.83,148.82,312.14216157]
[1741248499686,19.9876,148.83,148.82,312.14216157]
[1741248501492,17.3,148.83,148.82,312.14216157]
[1741248501988,17.3,148.83,148.82,0.14216157]
[1741248503181,19.9876,148.83,148.82,0.14216157]
[1741248506407,17.3,148.83,148.82,0.14216157]
[1741248507097,0.03,148.84,148.82,0.56864628]
[1741248507287,0.03,148.84,148.83,17.12458384]
[1741248507492,0.03,148.84,148.83,17.55106855]
[1741248508885,0.03,148.84,148.83,24.27006855]
[1741248509502,0.03,148.84,148.83,29.66174688]
[1741248509708,0.03,148.84,148.83,24.27006855]
[1741248510006,0.03,148.84,148.83,336.27006855]
[1741248510397,0.03,148.84,148.83,329.55106855]
[1741248512816,0.03,148.84,148.83,336.27006855]
[1741248514902,0.03,148.84,148.83,404.91971741]
[1741248516606,0.03,148.84,148.83,404.95271741]
[1741248519412,0.03,148.84,148.83,336.30306855]
[1741248519615,0.03,148.84,148.83,329.58406855]
[1741248523800,0.03,148.84,148.83,312.31732314]
[1741248524114,0.03,148.84,148.83,329.58406855]
[1741248524410,0.03,148.84,148.83,336.30306855]
[1741248524721,0.03,148.84,148.83,404.95271741]
[1741248528117,0.03,148.84,148.83,312.033]
[1741248528526,0.03,148.84,148.83,312.60164628]
[1741248529028,0.03,148.84,148.83,329.58406855]
[1741248532423,0.03,148.84,148.83,336.30306855]
[1741248534018,0.03,148.84,148.83,329.58406855]
[1741248535625,0.03,148.84,148.83,336.30306855]
[1741248537015,0.03,148.84,148.83,329.58406855]
[1741248539327,0.03,148.84,148.83,336.30306855]
[1741248540635,0.03,148.84,148.83,329.58406855]
[1741248546722,0.03,148.84,148.83,336.30306855]
[1741248546935,0.03,148.84,148.83,329.58406855]
[1741248549345,0.03,148.84,148.83,336.30306855]
[1741248549633,0.03,148.84,148.83,404.95271741]
[1741248551236,0.03,148.85,148.84,19.21829514]
[1741248551454,0.03,148.88,148.87,0.56864628]
[1741248551619,0.03,148.88,148.87,17.55106855]
[1741248552238,0.03,148.88,148.87,36.20071741]
[1741248552441,0.03,148.88,148.87,42.91791741]
[1741248553828,86.9099,148.95,148.89,0.56864628]
[1741248554033,80.8,148.95,148.94,17.55106855]
[1741248554217,0.03,148.97,148.94,17.55106855]
[1741248554427,0.03,148.97,148.96,312.14216157]
[1741248555637,0.03,148.97,148.96,312.56864628]
[1741248556437,0.03,148.97,148.96,329.55106855]
[1741248558224,80.83,148.98,148.97,0.56864628]
[1741248558225,0.03,148.98,148.97,0.56864628]
[1741248558426,0.03,148.98,148.97,17.55106855]
[1741248558748,0.03,148.98,148.97,24.26376855]
[1741248560133,0.03,148.98,148.97,17.55106855]
[1741248561340,0.03,148.98,148.97,329.55106855]
[1741248561543,0.03,148.98,148.97,336.26376855]
[1741248561727,0.03,148.98,148.97,354.91341741]
[1741248562335,0.03,148.98,148.97,329.55106855]
[1741248562733,0.03,148.98,148.97,336.26376855]
[1741248563451,0.03,148.98,148.97,329.55106855]
[1741248563636,0.03,148.98,148.97,336.26376855]
[1741248563947,0.03,148.98,148.97,329.55106855]
[1741248564150,0.03,148.98,148.97,348.20071741]
[1741248564351,0.03,148.98,148.97,354.91341741]
[1741248568067,0.03,148.99,148.98,50.0]
[1741248568355,0.03,149.03,149.01,0.56864628]
[1741248568547,0.03,149.03,149.02,17.55106855]
[1741248568734,0.03,149.05,149.04,70.56864628]
[1741248568936,0.03,149.09,149.08,0.56864628]
[1741248569154,0.03,149.09,149.08,36.20071741]
[1741248569356,0.03,149.09,149.08,42.90851741]
[1741248570259,0.03,149.13,149.1,19.21829514]
[1741248570439,0.03,149.13,149.1,42.26071741]
[1741248571347,0.03,149.13,149.1,354.26071741]
[1741248571660,0.03,149.13,149.1,335.61106855]
[1741248572056,0.03,149.13,149.1,342.31796855]
[1741248572840,0.03,149.13,149.1,360.96761741]
[1741248574944,0.03,149.13,149.1,335.61106855]
[1741248575337,0.03,149.13,149.1,342.31796855]
[1741248576055,0.03,149.13,149.1,335.61106855]
[1741248576252,0.03,149.13,149.1,342.31796855]
[1741248577276,0.03,149.13,149.1,360.96761741]
[1741248578463,0.03,149.13,149.11,69.21829514]
[1741248578657,0.03,149.13,149.11,86.20071741]
[1741248580060,0.03,149.13,149.11,92.90711741]
[1741248581366,0.03,149.13,149.11,86.20071741]
[1741248581564,0.03,149.13,149.11,398.20071741]
[1741248581767,0.03,149.13,149.11,379.55106855]
[1741248581964,0.03,149.13,149.11,386.25746855]
[1741248582140,0.03,149.13,149.11,379.55106855]
[1741248582343,0.03,149.13,149.11,312.42648471]
[1741248582546,105.9207,149.36,149.25,0.28432314]
[1741248582866,80.8,149.35,149.3,0.28432314]
[1741248583056,80.8,149.35,149.32,0.56864628]
[1741248583448,83.4782,149.35,149.32,0.14216157]
[1741248583765,83.4782,149.35,149.29,0.42648471]
[1741248583969,83.4782,149.35,149.29,0.14216157]
[1741248583970,98.1,149.34,149.29,0.14216157]
[1741248584460,98.1,149.34,149.28,0.56864628]
[1741248584966,98.1,149.34,149.28,17.55106855]
[1741248585168,98.1,149.33,149.28,17.55106855]
[1741248585745,98.1,149.33,149.32,312.14216157]
[1741248585959,80.8,149.33,149.32,312.14216157]
[1741248586160,80.8,149.33,149.32,312.56864628]
[1741248586363,80.8,149.33,149.32,0.56864628]
[1741248587456,7.8207,149.36,149.33,0.56864628]
[1741248587457,80.8,149.35,149.33,0.56864628]
[1741248587652,80.8,149.34,149.33,0.56864628]
[1741248589347,80.8,149.34,149.33,312.56864628]
[1741248589760,88.6207,149.36,149.33,329.55106855]
[1741248589971,88.6207,149.36,149.33,17.55106855]
[1741248590370,88.6207,149.36,149.33,0.56864628]
[1741248591668,0.03,149.34,149.29,16.98242227]
[1741248591869,80.8,149.33,149.31,16.98242227]
[1741248592076,80.8,149.33,149.32,17.55106855]
[1741248592379,0.03,149.34,149.33,0.14216157]
[1741248592984,0.03,149.34,149.33,312.14216157]
[1741248593347,0.03,149.34,149.33,328.98242227]
[1741248593553,0.03,149.34,149.33,329.12458384]
[1741248593786,0.03,149.34,149.33,329.55106855]
[1741248597968,80.83,149.34,149.33,312.0]
[1741248598173,80.83,149.34,149.33,312.56864628]
[1741248598383,80.83,149.34,149.33,312.0]
[1741248598555,80.83,149.34,149.28,16.98242227]
[1741248598883,80.8,149.33,149.26,0.56864628]
[1741248599054,80.8,149.32,149.28,16.98242227]
[1741248599259,98.1,149.32,149.26,16.98242227]
[1741248599473,95.6,149.31,149.26,16.98242227]
[1741248599859,2.6791,149.3,149.26,16.98242227]
[1741248600256,78.3,149.29,149.24,0.21324235]
[1741248600462,78.3,149.28,149.24,17.19566462]
[1741248600664,78.3,149.27,149.24,0.21324235]
[1741248601585,78.3,149.27,149.26,312.0]
[1741248601803,80.9797,149.27,149.26,312.0]
[1741248602279,93.4,149.26,149.15,50.0]
[1741248602457,93.4,149.25,149.18,16.98242227]
[1741248602660,18.64964886,149.26,149.16,16.98242227]
[1741248602661,18.64964886,149.23,149.16,16.98242227]
[1741248603096,18.64964886,149.21,149.15,6.08]
[1741248603391,18.64964886,149.21,149.16,0.42648471]